bitfinex/quotes_SOLUSD_20250414
["timestamp","ask_amount","ask_price","bid_price","bid_amount"]
[1744650616697,17.24753011,129.18,129.13,17.24753011]
[1744650616920,24.98923011,129.17,129.13,17.24753011]
[1744650617095,7.7417,129.17,129.13,17.24753011]
[1744650617296,17.24753011,129.14,129.11,0.063]
[1744650617525,17.24753011,129.16,129.11,17.31053011]
[1744650617731,17.24753011,129.16,129.11,25.05563011]
[1744650618227,24.98923011,129.17,129.12,17.24753011]
[1744650618518,24.98923011,129.17,129.13,17.24753011]
[1744650618519,7.7417,129.17,129.13,17.24753011]
[1744650618702,24.98923011,129.17,129.13,17.24753011]
[1744650619331,24.98883011,129.18,129.13,17.24753011]
[1744650619821,24.98883011,129.18,129.13,24.99153011]
[1744650620117,24.98883011,129.18,129.13,17.24753011]
[1744650620418,17.24753011,129.14,129.11,0.063]
[1744650620714,24.98883011,129.18,129.11,0.063]
[1744650620715,17.24753011,129.13,129.11,0.063]
[1744650621119,17.24753011,129.16,129.11,25.05563011]
[1744650621422,24.99023011,129.16,129.12,17.24753011]
[1744650621715,24.98933011,129.17,129.13,17.24753011]
[1744650621929,105.78853011,129.19,129.14,17.24753011]
[1744650622134,17.24753011,129.18,129.12,0.14216157]
[1744650622305,17.24753011,129.17,129.12,17.24753011]
[1744650622801,17.24753011,129.18,129.14,17.24753011]
[1744650623007,105.78853011,129.19,129.14,17.24753011]
[1744650623202,105.78853011,129.19,129.15,17.24753011]
[1744650623419,105.78853011,129.19,129.14,24.99083011]
[1744650624119,50.98763011,129.2,129.15,17.24753011]
[1744650624420,33.7401,129.2,129.16,17.24753011]
[1744650624798,50.98763011,129.2,129.16,17.24753011]
[1744650625004,33.7401,129.2,129.16,17.24753011]
[1744650625623,26.0,129.2,129.17,17.24753011]
[1744650625839,0.03,129.23,129.19,17.24753011]
[1744650626028,7.7682,129.23,129.19,17.24753011]
[1744650626926,25.01573011,129.23,129.18,17.24753011]
[1744650627102,35.35923471,129.23,129.18,27.59103471]
[1744650627733,27.59103471,129.22,129.17,27.59103471]
[1744650627918,27.59103471,129.2,129.16,27.59103471]
[1744650628607,27.59103471,129.2,129.15,36.93603471]
[1744650628809,27.59103471,129.2,129.15,29.19323471]
[1744650629027,27.59103471,129.16,129.11,0.063]
[1744650629211,27.59103471,129.15,129.11,7.8081]
[1744650629416,27.59103471,129.16,129.11,35.39913471]
[1744650629940,7.7429,129.15,129.11,27.65403471]
[1744650630333,7.7429,129.15,129.11,35.39923471]
[1744650630939,7.7429,129.15,129.11,27.65403471]
[1744650631345,35.33393471,129.15,129.11,0.063]
[1744650631515,7.7429,129.15,129.11,27.65403471]
[1744650631910,7.7429,129.15,129.12,27.59103471]
[1744650632125,7.7429,129.15,129.11,27.65403471]
[1744650632437,35.33393471,129.15,129.11,27.65403471]
[1744650632643,35.33393471,129.15,129.11,0.063]
[1744650634234,7.7429,129.15,129.11,35.39923471]
[1744650634746,7.7424,129.16,129.13,27.59103471]
[1744650634914,35.33283471,129.17,129.12,27.59103471]
[1744650635115,27.59103471,129.16,129.12,27.59103471]
[1744650636443,7.7429,129.15,129.12,27.59103471]
[1744650636813,35.33393471,129.15,129.11,0.063]
[1744650637226,27.59103471,129.14,129.11,0.063]
[1744650637836,35.33393471,129.15,129.11,0.063]
[1744650639552,27.59103471,129.14,129.11,0.063]
[1744650639754,7.7429,129.15,129.12,27.59103471]
[1744650640438,35.33333471,129.16,129.11,27.65403471]
[1744650640639,27.59103471,129.15,129.11,27.65403471]
[1744650640839,7.7411,129.18,129.12,27.59103471]
[1744650641138,7.7411,129.18,129.15,27.59103471]
[1744650641344,27.59103471,129.17,129.11,0.063]
[1744650641638,26.0,129.15,129.11,27.65403471]
[1744650642456,7.7435,129.14,129.11,27.65403471]
[1744650642755,35.33453471,129.14,129.11,0.063]
[1744650642966,27.59103471,129.13,129.11,0.063]
[1744650643832,7.7435,129.14,129.11,27.65403471]
[1744650644033,61.33423471,129.15,129.11,27.65403471]
[1744650644546,27.59103471,129.14,129.11,0.063]
[1744650644758,27.59103471,129.13,129.11,0.063]
[1744650645555,27.59103471,129.14,129.11,0.063]
[1744650645945,80.69153471,129.15,129.11,0.063]
[1744650646266,27.59103471,129.14,129.11,0.063]
[1744650646860,35.33513471,129.13,129.11,0.063]
[1744650647359,25.01501651,129.13,129.11,0.063]
[1744650647936,17.27091651,129.12,129.11,0.063]
[1744650648377,7.7437,129.14,129.11,0.063]
[1744650648659,26.0,129.15,129.12,17.27091651]
[1744650648836,17.27091651,129.18,129.13,17.27091651]
[1744650649037,7.742,129.17,129.13,17.27091651]
[1744650649237,7.7408,129.19,129.15,17.27091651]
[1744650651137,7.74,129.2,129.16,17.27091651]
[1744650651336,7.7387,129.22,129.19,17.27091651]
[1744650652555,7.7681,129.23,129.19,17.27091651]
[1744650653045,7.7681,129.23,129.17,18.78821651]
[1744650653046,17.27091651,129.22,129.17,18.78821651]
[1744650653246,27.59558469,129.21,129.17,27.59558469]
[1744650653754,26.0,129.2,129.16,27.59558469]
[1744650653957,26.0,129.2,129.14,1.6262]
[1744650653958,27.59558469,129.19,129.14,1.6262]
[1744650654169,53.59558469,129.2,129.15,27.59558469]
[1744650654545,7.7405,129.19,129.15,27.59558469]
[1744650654765,35.33608469,129.19,129.14,29.22178469]
[1744650654956,27.59558469,129.18,129.14,29.22178469]
[1744650655265,54.68738469,129.19,129.14,29.22178469]
[1744650656262,7.7405,129.19,129.15,27.59558469]
[1744650657863,80.8,129.21,129.18,27.59558469]
[1744650658063,80.8,129.21,129.19,27.59558469]
[1744650658253,7.7681,129.23,129.19,27.59558469]
[1744650658455,0.03,129.23,129.21,27.59558469]
[1744650659277,0.03,129.23,129.22,27.59558469]
[1744650659441,0.03,129.23,129.2,1.6362]
[1744650659770,0.03,129.23,129.22,27.59558469]
[1744650661362,0.03,129.23,129.21,27.59558469]
[1744650662074,0.03,129.23,129.22,27.59558469]
[1744650662586,0.03,129.23,129.22,35.33428469]
[1744650662886,15.25773851,129.28,129.22,35.33428469]
[1744650663083,7.7354,129.28,129.23,0.14216157]
[1744650663408,27.59558469,129.27,129.22,27.59558469]
[1744650663565,35.33098469,129.28,129.23,27.59558469]
[1744650664177,7.7646,129.29,129.25,27.59558469]
[1744650664368,7.7646,129.29,129.26,27.59558469]
[1744650664970,0.03,129.29,129.28,27.59558469]
[1744650666866,53.62558469,129.29,129.25,33.89608469]
[1744650667070,27.59558469,129.28,129.23,29.22468469]
[1744650667275,27.59558469,129.27,129.23,29.22468469]
[1744650667670,27.59558469,129.27,129.22,27.59558469]
[1744650667867,27.59558469,129.26,129.21,33.84738469]
[1744650668252,7.7369,129.25,129.21,33.84738469]
[1744650669151,7.7369,129.25,129.19,20.563072]
[1744650669152,27.59558469,129.24,129.19,1.6291]
[1744650669355,27.59558469,129.24,129.19,29.22468469]
[1744650670173,35.33248469,129.25,129.2,27.59558469]
[1744650670562,27.59558469,129.23,129.19,1.6291]
[1744650670766,27.59558469,129.24,129.19,29.22468469]
[1744650671672,27.59558469,129.24,129.19,36.96508469]
[1744650671982,54.67478469,129.25,129.2,27.59558469]
[1744650672357,27.59558469,129.24,129.19,29.22468469]
[1744650672574,27.59558469,129.22,129.18,27.59558469]
[1744650672783,27.59558469,129.22,129.17,27.59558469]
[1744650672965,27.59558469,129.22,129.18,27.59558469]
[1744650673165,27.59558469,129.21,129.17,27.59558469]
[1744650673471,27.59558469,129.19,129.16,0.063]
[1744650673858,80.8,129.22,129.17,27.59558469]
[1744650674165,108.39558469,129.22,129.18,27.59558469]
[1744650674361,108.39558469,129.22,129.17,27.59558469]
[1744650674562,88.5392,129.22,129.18,27.59558469]
[1744650674859,88.5392,129.22,129.19,27.59558469]
[1744650675170,26.0,129.23,129.2,27.59558469]
[1744650675561,26.0,129.23,129.19,27.59558469]
[1744650675769,53.59558469,129.22,129.18,27.59558469]
[1744650675973,26.0,129.22,129.18,27.59558469]
[1744650676179,26.0,129.22,129.19,27.59558469]
[1744650676381,26.0,129.22,129.18,27.59558469]
[1744650676588,7.7393,129.21,129.18,27.59558469]
[1744650676765,33.7389,129.22,129.18,27.59558469]
[1744650677378,33.7389,129.22,129.16,0.063]
[1744650677581,27.59558469,129.19,129.16,0.063]
[1744650678686,35.33648469,129.19,129.16,0.063]
[1744650679181,35.33568469,129.2,129.16,27.65858469]
[1744650679388,15.9595,129.21,129.17,27.59558469]
[1744650679583,100.1442,129.24,129.19,27.59558469]
[1744650679880,7.7384,129.23,129.2,27.59558469]
[1744650680067,108.39558469,129.24,129.2,27.59558469]
[1744650680068,88.5378,129.24,129.2,27.59558469]
[1744650680268,88.5378,129.24,129.21,27.59558469]
[1744650680488,88.5378,129.24,129.2,27.59558469]
[1744650680785,80.8,129.24,129.23,27.59558469]
[1744650680965,7.7351,129.28,129.23,27.59558469]
[1744650681166,7.7351,129.28,129.26,27.59558469]
[1744650681374,96.7848,129.29,129.27,27.59558469]
[1744650681577,96.7848,129.29,129.24,27.59558469]
[1744650681578,0.03,129.29,129.28,27.59558469]
[1744650681979,0.03,129.29,129.28,46.9560414]
[1744650682189,0.03,129.29,129.28,27.87990783]
[1744650682691,0.03,129.29,129.28,35.61500783]
[1744650682990,0.03,129.3,129.28,69.29100077]
[1744650683288,0.03,129.3,129.29,55.19116938]
[1744650683684,0.03,129.3,129.29,55.47549252]
[1744650684266,0.03,129.3,129.29,74.55162609]
[1744650684890,0.03,129.3,129.29,82.28612609]
[1744650685462,0.03,129.31,129.3,18.64964886]
[1744650685870,0.03,129.32,129.31,0.42648471]
[1744650686069,0.03,129.34,129.33,0.42648471]
[1744650686283,0.03,129.38,129.35,19.36045671]
[1744650686480,0.03,129.38,129.35,74.55162609]
[1744650686882,0.03,129.38,129.35,82.28252609]
[1744650687071,0.03,129.38,129.37,44.64964886]
[1744650687280,0.03,129.38,129.37,80.27603355]
[1744650687475,0.03,129.38,129.37,61.91070783]
[1744650687675,0.03,129.38,129.37,62.33719254]
[1744650688071,0.03,129.38,129.37,61.62638469]
[1744650688370,0.03,129.38,129.37,27.59558469]
[1744650690872,0.03,129.38,129.36,27.59558469]
[1744650691286,0.03,129.38,129.35,7.7309]
[1744650691491,0.03,129.38,129.36,27.59558469]
[1744650691689,0.03,129.41,129.4,0.42648471]
[1744650691893,0.03,129.41,129.4,28.30639254]
[1744650692102,0.03,129.41,129.4,36.03429254]
[1744650692498,0.03,129.41,129.4,27.59558469]
[1744650696198,0.03,129.41,129.4,35.32348469]
[1744650699503,0.03,129.41,129.4,36.03429254]
[1744650702189,0.03,129.41,129.38,19.3224]
[1744650702190,0.03,129.41,129.36,35.81558469]
[1744650702510,27.59558469,129.4,129.36,27.59558469]
[1744650702704,0.03,129.41,129.37,27.59558469]
[1744650703007,27.59558469,129.4,129.36,27.59558469]
[1744650703195,0.03,129.41,129.36,27.59558469]
[1744650703528,0.03,129.41,129.39,27.59558469]
[1744650703803,0.03,129.41,129.4,28.0220694]
[1744650704006,0.03,129.41,129.4,28.30639254]
[1744650704592,0.03,129.41,129.4,36.03429254]
[1744650704895,0.03,129.41,129.4,27.59558469]
[1744650705596,0.03,129.41,129.39,27.59558469]
[1744650706508,0.03,129.41,129.4,27.59558469]
[1744650706719,0.03,129.41,129.38,27.59558469]
[1744650707211,0.03,129.41,129.36,8.48432314]
[1744650707212,27.59558469,129.4,129.36,27.59558469]
[1744650707785,27.62558469,129.41,129.36,27.59558469]
[1744650707985,0.03,129.41,129.37,27.59558469]
[1744650708935,7.7573,129.41,129.37,27.59558469]
[1744650709590,35.35288469,129.41,129.36,27.59558469]
[1744650709795,35.35288469,129.41,129.35,7.7308]
[1744650710115,35.35288469,129.41,129.36,27.59558469]
[1744650710286,7.7573,129.41,129.37,27.59558469]
[1744650710714,0.03,129.41,129.37,27.59558469]
[1744650710892,27.62558469,129.41,129.36,27.59558469]
[1744650711099,0.03,129.41,129.36,27.59558469]
[1744650711299,27.62558469,129.41,129.36,27.59558469]
[1744650712818,7.7279,129.4,129.35,7.7307]
[1744650713017,7.7279,129.4,129.36,27.59558469]
[1744650713399,7.7575,129.41,129.37,27.59558469]
[1744650713717,0.03,129.41,129.37,27.59558469]
[1744650713905,0.03,129.41,129.39,27.59558469]
[1744650714295,0.03,129.41,129.37,27.59558469]
[1744650714495,7.7574,129.41,129.38,27.59558469]
[1744650714795,7.7574,129.41,129.36,0.56864628]
[1744650714796,7.7574,129.41,129.37,27.59558469]
[1744650715417,0.03,129.41,129.37,35.32498469]
[1744650715597,0.03,129.41,129.38,27.59558469]
[1744650716188,0.03,129.41,129.4,27.59558469]
[1744650716708,0.03,129.41,129.37,7.7294]
[1744650716916,0.03,129.41,129.39,27.59558469]
[1744650717935,0.03,129.41,129.38,35.32418469]
[1744650718228,0.03,129.41,129.39,27.59558469]
[1744650719014,27.62558469,129.41,129.35,27.59558469]
[1744650719311,0.03,129.41,129.37,27.59558469]
[1744650719500,0.03,129.41,129.38,27.59558469]
[1744650720308,0.03,129.41,129.39,27.59558469]
[1744650720499,0.03,129.41,129.38,27.59558469]
[1744650720692,0.03,129.41,129.39,27.59558469]
[1744650721128,0.03,129.41,129.4,27.59558469]
[1744650721490,0.03,129.41,129.39,27.59558469]
[1744650722110,0.03,129.41,129.4,27.59558469]
[1744650722412,0.03,129.41,129.4,28.30639254]
[1744650722623,0.03,129.41,129.4,27.59558469]
[1744650722825,0.03,129.41,129.36,7.73]
[1744650722990,35.35298469,129.41,129.36,27.59558469]
[1744650723196,0.03,129.41,129.38,27.59558469]
[1744650723404,0.03,129.41,129.39,27.59558469]
[1744650723613,0.03,129.41,129.37,27.59558469]
[1744650723821,35.35298469,129.41,129.37,27.59558469]
[1744650724115,27.59558469,129.4,129.35,27.59558469]
[1744650724921,27.59558469,129.37,129.31,0.063]
[1744650725110,27.59558469,129.34,129.31,0.063]
[1744650725315,35.32678469,129.35,129.31,0.063]
[1744650725615,27.59558469,129.37,129.32,27.59558469]
[1744650725794,27.59558469,129.36,129.31,35.39178469]
[1744650726203,27.59558469,129.36,129.32,27.59558469]
[1744650726403,27.59558469,129.36,129.31,7.7961]
[1744650726612,27.59558469,129.33,129.31,0.063]
[1744650727009,27.59558469,129.34,129.31,0.063]
[1744650727322,26.74394886,129.36,129.31,0.063]
[1744650727323,7.731,129.35,129.31,27.65858469]
[1744650727522,35.32658469,129.35,129.31,0.063]
[1744650727818,27.59558469,129.34,129.31,0.063]
[1744650729117,7.7297,129.38,129.33,27.59558469]
[1744650729297,7.7297,129.38,129.32,35.32798469]
[1744650729298,27.59558469,129.37,129.32,35.32798469]
[1744650729493,27.59558469,129.37,129.32,27.59558469]
[1744650730518,27.59558469,129.37,129.33,27.59558469]
[1744650731099,35.32528469,129.38,129.33,27.59558469]
[1744650731304,96.7287,129.39,129.35,27.59558469]
[1744650731516,124.32428469,129.39,129.34,27.59558469]
[1744650732027,96.7287,129.39,129.35,27.59558469]
[1744650732322,124.32428469,129.39,129.33,7.7321]
[1744650732516,27.59558469,129.38,129.33,27.59558469]
[1744650732714,96.7287,129.39,129.33,27.59558469]
[1744650733020,27.59558469,129.38,129.33,27.59558469]
[1744650733529,8.2,129.39,129.35,27.59558469]
[1744650733728,8.2,129.39,129.36,27.59558469]
[1744650734022,43.52428469,129.39,129.34,27.59558469]
[1744650734427,43.52428469,129.39,129.34,35.32708469]
[1744650734623,27.59558469,129.38,129.33,27.59558469]
[1744650735124,7.7287,129.39,129.35,27.59558469]
[1744650735324,27.59558469,129.38,129.33,27.59558469]
[1744650735510,27.59558469,129.37,129.32,27.59558469]
[1744650735706,27.59558469,129.36,129.31,37.05388469]
[1744650736016,35.77558469,129.38,129.33,27.59558469]
[1744650736413,7.7297,129.37,129.33,27.59558469]
[1744650736614,15.9092,129.38,129.34,27.59558469]
[1744650737009,80.8,129.4,129.37,27.59558469]
[1744650737226,80.8,129.4,129.34,6.2247]
[1744650737414,0.03,129.41,129.37,27.59558469]
[1744650737608,0.03,129.41,129.38,27.59558469]
[1744650737813,0.03,129.41,129.4,27.59558469]
[1744650738626,0.03,129.41,129.4,35.32348469]
[1744650738932,0.03,129.41,129.4,35.07348469]
[1744650739337,0.03,129.41,129.4,27.34558469]
[1744650739922,0.03,129.41,129.4,35.07348469]
[1744650740326,0.03,129.41,129.4,35.78429254]
[1744650740721,0.03,129.41,129.4,54.4339414]
[1744650740921,0.063,129.42,129.41,19.36045671]
[1744650741114,0.063,129.42,129.41,74.55162609]
[1744650742011,0.03,129.44,129.43,44.64964886]
[1744650742215,0.03,129.44,129.43,72.24523355]
[1744650742416,0.03,129.44,129.43,54.30639254]
[1744650742822,0.03,129.44,129.43,62.03249254]
[1744650743819,0.03,129.44,129.43,82.2425414]
[1744650746347,0.03,129.44,129.43,63.59289254]
[1744650747648,0.03,129.46,129.44,0.71080785]
[1744650747855,0.03,129.54,129.48,26.0]
[1744650748146,0.03,129.54,129.52,27.59558469]
[1744650748331,0.03,129.54,129.5,27.59558469]
[1744650748646,0.03,129.54,129.53,27.59558469]
[1744650749319,0.03,129.54,129.5,1.6559]
[1744650749640,0.03,129.54,129.53,27.59558469]
[1744650751329,0.03,129.54,129.5,1.6559]
[1744650751533,0.03,129.54,129.49,26.0]
[1744650751732,0.03,129.54,129.47,9.55862314]
[1744650751733,7.7202,129.53,129.47,9.55862314]
[1744650751934,7.7202,129.53,129.49,27.59558469]
[1744650752439,35.34538469,129.54,129.5,27.59558469]
[1744650752645,7.7498,129.54,129.5,27.59558469]
[1744650753544,7.7498,129.54,129.51,27.59558469]
[1744650753847,0.03,129.54,129.53,27.59558469]
[1744650756126,0.03,129.54,129.52,27.59558469]
[1744650756347,0.03,129.54,129.5,27.59558469]
[1744650756533,0.03,129.54,129.51,27.59558469]
[1744650757654,7.7496,129.54,129.52,27.59558469]
[1744650757846,0.03,129.54,129.52,27.59558469]
[1744650758958,0.03,129.54,129.53,27.59558469]
[1744650759543,0.03,129.54,129.52,27.59558469]
[1744650759861,0.03,129.54,129.53,27.59558469]
[1744650760729,0.03,129.54,129.53,36.02659254]
[1744650761154,0.03,129.54,129.53,35.31578469]
[1744650761759,0.03,129.54,129.53,27.59558469]
[1744650761943,0.03,129.54,129.53,35.31578469]
[1744650762145,0.03,129.54,129.53,27.59558469]
[1744650762560,0.03,129.54,129.53,35.31578469]
[1744650762941,99.44964886,129.53,129.43,27.0411]
[1744650763170,27.59558469,129.44,129.41,0.063]
[1744650763342,27.59558469,129.43,129.41,0.063]
[1744650763532,27.59558469,129.46,129.41,27.65858469]
[1744650763737,33.59568469,129.47,129.42,27.59558469]
[1744650764150,27.59558469,129.46,129.41,27.65858469]
[1744650764746,35.32028469,129.46,129.41,27.65858469]
[1744650764948,7.7247,129.46,129.42,27.59558469]
[1744650765340,35.31958469,129.47,129.42,27.59558469]
[1744650765557,35.31958469,129.47,129.43,27.59558469]
[1744650765753,35.31958469,129.47,129.42,27.59558469]
[1744650765972,35.31958469,129.47,129.41,0.63164628]
[1744650766139,8.16,129.48,129.44,27.59558469]
[1744650766341,41.68568469,129.5,129.45,27.59558469]
[1744650766554,27.59558469,129.49,129.45,27.59558469]
[1744650766749,35.31778469,129.5,129.45,27.59558469]
[1744650766956,27.59558469,129.49,129.44,27.59558469]
[1744650767261,27.59558469,129.49,129.45,27.59558469]
[1744650767961,35.31838469,129.49,129.44,27.59558469]
[1744650768863,27.59558469,129.47,129.43,27.59558469]
[1744650769266,7.7228,129.49,129.44,27.59558469]
[1744650769267,27.59558469,129.48,129.44,27.59558469]
[1744650770070,27.59558469,129.49,129.44,35.32098469]
[1744650770251,27.59558469,129.49,129.45,27.59558469]
[1744650770562,27.59558469,129.49,129.44,35.32098469]
[1744650771257,35.31828469,129.49,129.44,35.32098469]
[1744650771455,27.59558469,129.51,129.47,27.59558469]
[1744650771647,27.59558469,129.51,129.46,27.59558469]
[1744650771848,88.96,129.53,129.49,27.59558469]
[1744650772164,80.8,129.53,129.5,27.59558469]
[1744650772360,0.03,129.54,129.52,27.59558469]
[1744650772746,0.03,129.54,129.51,27.59558469]
[1744650773766,0.03,129.54,129.51,35.31698469]
[1744650773969,0.03,129.54,129.51,27.59558469]
[1744650774961,27.59558469,129.52,129.48,27.59558469]
[1744650775270,27.59558469,129.51,129.46,35.31958469]
[1744650775655,27.59558469,129.51,129.47,27.59558469]
[1744650775656,35.31718469,129.51,129.47,27.59558469]
[1744650776046,0.03,129.54,129.5,46.52955669]
[1744650776247,0.03,129.54,129.53,27.59558469]
[1744650776454,0.03,129.54,129.53,46.9560414]
[1744650776671,0.03,129.6,129.53,46.9560414]
[1744650776672,0.03,129.6,129.58,27.59558469]
[1744650776975,0.03,129.6,129.56,27.59558469]
[1744650777155,27.62558469,129.6,129.55,27.59558469]
[1744650777360,0.03,129.6,129.55,27.59558469]
[1744650777672,27.62558469,129.6,129.55,35.31428469]
[1744650777870,27.62558469,129.6,129.56,27.59558469]
[1744650777871,0.03,129.6,129.56,27.59558469]
[1744650778068,27.59558469,129.58,129.54,27.59558469]
[1744650778378,27.59558469,129.59,129.54,27.59558469]
[1744650779652,35.34168469,129.6,129.55,27.59558469]
[1744650779853,27.59558469,129.59,129.55,27.59558469]
[1744650780159,27.62558469,129.6,129.55,27.59558469]
[1744650780567,27.59558469,129.59,129.54,7.719]
[1744650780754,27.59558469,129.58,129.53,27.59558469]
[1744650781464,27.59558469,129.57,129.52,35.31638469]
[1744650781688,27.59558469,129.55,129.51,7.7211]
[1744650781856,27.59558469,129.54,129.5,27.59558469]
[1744650782182,27.59558469,129.55,129.5,27.59558469]
[1744650782352,27.59558469,129.55,129.5,35.31748469]
[1744650782775,27.59558469,129.54,129.5,7.7219]
[1744650782954,27.59558469,129.54,129.49,35.31788469]
[1744650783154,27.59558469,129.5,129.47,7.7237]
[1744650783455,27.59558469,129.48,129.44,27.59558469]
[1744650783666,27.59558469,129.48,129.43,27.59558469]
[1744650783863,27.59558469,129.48,129.44,35.32088469]
[1744650784261,27.59558469,129.49,129.44,35.32088469]
[1744650784461,27.59558469,129.5,129.45,27.59558469]
[1744650784668,27.59558469,129.49,129.45,27.59558469]
[1744650784870,27.59558469,129.49,129.44,35.32088469]
[1744650785066,27.59558469,129.5,129.45,27.59558469]
[1744650785678,35.31718469,129.51,129.46,35.31978469]
[1744650785875,35.31648469,129.52,129.47,27.59558469]
[1744650786256,116.55558469,129.53,129.49,27.59558469]
[1744650786583,116.55558469,129.53,129.46,7.7242]
[1744650786584,80.8,129.53,129.5,27.59558469]
[1744650786775,6.5376,129.56,129.51,27.59558469]
[1744650786969,27.59558469,129.55,129.51,27.59558469]
[1744650787171,27.59558469,129.55,129.47,0.42648471]
[1744650787172,27.59558469,129.55,129.5,27.59558469]
[1744650787370,27.59558469,129.53,129.46,27.0351]
[1744650787570,27.59558469,129.52,129.48,27.59558469]
[1744650787769,27.59558469,129.52,129.47,27.59558469]
[1744650787971,35.31658469,129.52,129.47,35.31928469]
[1744650788169,35.31658469,129.52,129.48,27.59558469]
[1744650788376,35.31658469,129.52,129.47,27.59558469]
[1744650789262,35.31658469,129.52,129.46,7.7241]
[1744650789263,27.59558469,129.51,129.46,27.59558469]
[1744650789972,35.31738469,129.51,129.46,27.59558469]
[1744650790483,27.59558469,129.5,129.45,27.59558469]
[1744650790667,27.59558469,129.49,129.44,27.65858469]
[1744650790867,27.59558469,129.49,129.45,27.59558469]
[1744650791070,27.59558469,129.48,129.44,0.063]
[1744650791269,27.59558469,129.48,129.44,35.38398469]
[1744650791468,27.59558469,129.49,129.44,35.38398469]
[1744650791686,27.59558469,129.48,129.44,27.65858469]
[1744650791860,115.9853,129.51,129.44,0.063]
[1744650791861,27.59558469,129.47,129.44,0.063]
[1744650792187,27.59558469,129.46,129.44,0.063]
[1744650792391,35.31988469,129.47,129.44,0.063]
[1744650792579,27.59558469,129.45,129.44,0.063]
[1744650792766,72.24523355,129.45,129.44,0.063]
[1744650792973,72.9560414,129.45,129.44,0.063]
[1744650793174,72.24523355,129.45,129.44,0.063]
[1744650793492,26.0,129.45,129.44,0.063]
[1744650793672,35.75558469,129.46,129.44,0.063]
[1744650794080,8.16,129.46,129.44,0.063]
[1744650794285,43.48018469,129.46,129.44,0.063]
[1744650794587,35.32018469,129.46,129.44,0.063]
[1744650794780,6.5371,129.49,129.44,27.65858469]
[1744650794976,35.31758469,129.5,129.46,27.59558469]
[1744650795181,35.31758469,129.5,129.45,27.59558469]
[1744650795496,27.59558469,129.49,129.44,0.063]
[1744650795703,35.31758469,129.5,129.45,27.59558469]
[1744650796002,35.31928469,129.48,129.44,0.063]
[1744650796178,7.7237,129.48,129.45,27.59558469]
[1744650796365,35.31778469,129.5,129.46,27.59558469]
[1744650796570,27.59558469,129.51,129.47,27.59558469]
[1744650796999,27.59558469,129.51,129.46,27.59558469]
[1744650797201,35.75558469,129.52,129.48,27.59558469]
[1744650797688,35.75558469,129.52,129.47,27.59558469]
[1744650798071,43.47648469,129.52,129.48,27.59558469]
[1744650798288,27.59558469,129.51,129.45,7.7247]
[1744650798489,43.47648469,129.52,129.47,27.59558469]
[1744650798695,43.47648469,129.52,129.48,27.59558469]
[1744650799173,88.5202,129.53,129.49,27.59558469]
[1744650799369,116.11578469,129.53,129.48,27.59558469]
[1744650799568,88.5202,129.53,129.49,27.59558469]
[1744650799776,116.11578469,129.53,129.49,27.59558469]
[1744650799994,27.59558469,129.51,129.47,27.59558469]
[1744650800198,35.31758469,129.51,129.47,27.59558469]
[1744650800575,35.31758469,129.51,129.46,27.59558469]
[1744650800800,27.59558469,129.5,129.44,0.063]
[1744650800978,27.59558469,129.5,129.45,27.59558469]
[1744650801892,27.59558469,129.48,129.44,27.65858469]
[1744650802100,7.7237,129.47,129.44,27.65858469]
[1744650802515,7.7237,129.47,129.44,0.063]
[1744650803307,35.31898469,129.48,129.44,27.65858469]
[1744650803524,7.7234,129.48,129.44,27.65858469]
[1744650804220,35.31838469,129.49,129.45,27.59558469]
[1744650804719,7.722,129.5,129.45,27.59558469]
[1744650804892,35.31758469,129.5,129.45,27.59558469]
[1744650805508,35.31758469,129.5,129.46,27.59558469]
[1744650805792,8.16,129.51,129.47,27.59558469]
[1744650806198,8.16,129.51,129.48,27.59558469]
[1744650806402,88.5204,129.53,129.49,27.59558469]
[1744650807298,80.8,129.53,129.5,27.59558469]
[1744650807500,80.8,129.53,129.5,35.31758469]
[1744650807705,35.31458469,129.55,129.5,35.31758469]
[1744650807904,7.719,129.55,129.51,27.59558469]
[1744650808307,7.719,129.55,129.49,7.7224]
[1744650808617,7.719,129.55,129.51,27.59558469]
[1744650808793,8.16,129.56,129.53,27.59558469]
[1744650809305,80.8,129.57,129.53,35.31558469]
[1744650809511,80.8,129.57,129.54,27.59558469]